Cogmind - Beta 16 @@@ ROGUE MODE // 2025.11.07 @ 20:56:33 Player: ChromeKnight Result: Destroyed by CV-91H(R) with Subdweller Laser Performance ------------- Evolutions (0) 0 Regions Visited (3) 600 Robots Destroyed (27) 135 Value Destroyed (573) 573 Prototype IDs (0) 0 Alien Tech Used (0) 0 Bonus (65) 65 TOTAL SCORE: 1373 Bonus ------- Follower Combat Kills 65 Cogmind --------- Core Integrity 0/250 Matter 177/300 Energy 170/170 System Corruption 0% Temperature Cool (10) Movement Core (1750) Ox34 Location -10/Subcaves Parts ------- > --- POWER (1) -------- Makeshift Power Source > --- PROPULSION (2) --- Light Treads > --- UTILITY (2) ------ Huge Storage Unit Makeshift Light Armor Plating > --- WEAPON (2) ------- Slug Cannon Subdweller Shrapnel Launcher > --- INVENTORY (25) --- Makeshift Power Source Light Treads Light Treads Wheel Wheel Wheel Compact Wheel Compact Wheel Heat Sink Improved Heat Sink Small Storage Unit Structural Scanner ECM Suite Scrap Shield Hacking Suite EM Pulse Gun EM Pulse Gun Particle Gun Particle Gun Light Assault Rifle Battle Rifle Rocket Launcher Mining Laser Enhanced Flamer Peak State ------------ > --- POWER ------------ Makeshift Power Source > --- PROPULSION ------- Light Treads Wheel > --- UTILITY ---------- Huge Storage Unit Makeshift Light Armor Plating > --- WEAPON ----------- Slug Cannon Subdweller Shrapnel Launcher > --- INVENTORY -------- Makeshift Power Source Light Treads Light Treads Wheel Wheel Wheel Compact Wheel Compact Wheel Heat Sink Improved Heat Sink Small Storage Unit Structural Scanner ECM Suite Scrap Shield Hacking Suite EM Pulse Gun EM Pulse Gun Particle Gun Particle Gun Light Assault Rifle Battle Rifle Rocket Launcher Mining Laser Enhanced Flamer [Rating: 21] Favorites ----------- Power Light Ion Engine Engine Light Ion Engine Power Core Light Nuclear Core Propulsion Light Treads Treads Light Treads Wheel Wheel Utility Huge Storage Unit Device Heat Sink Storage Huge Storage Unit Protection Makeshift Light Armor Plating Weapon Particle Gun Energy Gun Particle Gun Energy Cannon Beam Cannon Ballistic Gun Light Assault Rifle Ballistic Cannon Slug Cannon Launcher Subdweller Shrapnel Launcher Special Weapon Mining Laser Build | -11 -10 -10 -10 ------- Run | Yrd Mat Min Sub Slots Evolved . | . . . . Power . | . . . . Propulsion . | . . . . Utility . | . . . . Weapon . | . . . . Parts Attached 25 | 6 6 5 8 Power 4 | 1 . 1 2 Engine 3 | 1 . . 2 Core 1 | . . 1 . Reactor . | . . . . Propulsion 6 | 2 3 . 1 Treads 3 | 2 1 . . Leg . | . . . . Wheel 3 | . 2 . 1 Hover . | . . . . Flight . | . . . . Utility 6 | 1 1 2 2 Device 2 | . . 2 . Storage 2 | 1 1 . . Processor . | . . . . Hackware . | . . . . Protection 2 | . . . 2 Artifact . | . . . . Weapon 9 | 2 2 2 3 Energy Gun 3 | . 2 1 . Energy Cannon 1 | . . 1 . Ballistic Gun 2 | 2 . . . Ballistic Cannon 1 | . . . 1 Launcher 1 | . . . 1 Special Weapon 1 | . . . 1 Impact Weapon . | . . . . Slashing Weapon . | . . . . Piercing Weapon . | . . . . Special Melee Weapon . | . . . . Unidentified Prototypes . | . . . . Parts Lost 5 | . 2 . 3 Power 1 | . . . 1 Propulsion 2 | . 1 . 1 Utility 1 | . . . 1 Weapon 1 | . 1 . . Highest Loss Streak 2 | . 2 . 1 To Critical Strikes . | . . . . Average Backups 19 | . 11 23 23 Power . | . . . . Propulsion 6 | . 4 8 7 Utility 6 | . 3 7 8 Weapon 6 | . 3 7 8 Tool/Special . | . . . . Unused Backups 22 | . . . 22 Power 1 | . . . 1 Propulsion 7 | . . . 7 Utility 6 | . . . 6 Weapon 8 | . . . 8 Tool/Special . | . . . . Average Slot Usage (%) 94 | . 83 98 99 Engine 9 | . 13 1 12 Core 4 | . . 12 . Treads 15 | . 19 14 14 Wheel 11 | . 7 14 13 Device 5 | . . 12 2 Storage 14 | . 14 14 14 Protection 4 | . . . 11 Energy Gun 9 | . 6 14 7 Energy Cannon 6 | . . 12 5 Ballistic Gun 7 | . 20 1 . Ballistic Cannon 2 | . . . 5 Launcher 2 | . . . 5 Special Weapon 1 | . . . 3 Peak Build Rating 21 | 6 9 13 21 Average Rating 11 | 4 7 11 15 On Entrance 7 | . 6 9 13 Avg Prop Armor Cover (%) 11 | . 13 12 9 Naked Turns . | . . . . Heaviest Build 103 | 11 91 92 103 Greatest Support 40 | 40 40 10 10 Greatest Overweight (x) 10 | . 8 9 10 Average Overweight (x) 7 | . 3 8 9 Largest Inventory Capacity 25 | 8 25 25 25 Average Capacity 22 | 7 18 25 25 Most Carried 25 | 1 22 25 25 Average Carried 19 | . 11 23 24 Final Capacity 25 | 8 25 25 25 Final Carried 25 | 1 22 25 25 Class Distribution -------------------- 49% | Mutant 35% | Scavenger-Mutant 14% | Derelict-Mutant Dominant Class ---------------- Mutant | -10/Materials Scavenger-Mutant | -10/Mines Derelict-Mutant | -10/Subcaves Resources | -11 -10 -10 -10 ----------- Run | Yrd Mat Min Sub Matter Collected 809 | 193 350 123 143 Remotely . | . . . . Salvage Created 950 | . 750 112 88 Parts 64 | . 49 7 8 Haulers Intercepted 2 | . 2 . . Recyclers Shooed 2 | . 2 . . Parts Field Recycled . | . . . . Retrieved Matter . | . . . . Parts Self-Destructed 2 | . . . 2 Prevented . | . . . . Parts Restored . | . . . . Kills | -11 -10 -10 -10 ------- Run | Yrd Mat Min Sub Combat Hostiles Destroyed 16 | . 10 3 3 Guns 11 | . 10 1 . Cannons 3 | . . 2 1 AOE 2 | . . . 2 Classes Destroyed 9 | . 7 1 1 Worker 2 | . 2 . . Builder 1 | . 1 . . Tunneler 1 | . . 1 . Hauler 2 | . 2 . . Recycler 3 | . 3 . . Operator 2 | . 2 . . Swarmer 4 | . 3 1 . Grunt 9 | . 7 2 . Subdweller 3 | . . . 3 Best Kill Streak 4 | . 4 2 2 Combat Bots Only 3 | . 3 2 2 Max Kills in Single Turn 2 | . 1 1 2 Gunslinging . | . . . . Exploded 2 | . . . 2 Melee . | . . . . Uniques/NPCs Destroyed . | . . . . Combat | -11 -10 -10 -10 -------- Run | Yrd Mat Min Sub Hostile Shots Fired 120 | . 80 12 28 Missed 29 | . 22 2 5 Hits 91 | . 58 10 23 Projectile 91 | . 58 10 23 Damage Taken 1334 | . 630 86 618 Core 259 | . 92 27 140 Absorbed by Shields . | . . . . Core Remaining (%) 100 | 100 . . . Volleys Fired 141 | . 82 7 52 Largest 2 | . 2 2 2 Hottest 125 | . 85 125 125 Shots Fired 237 | . 164 14 59 Gun 176 | . 164 8 4 Cannon 41 | . . 6 35 Launcher 3 | . . . 3 Special 17 | . . . 17 Kinetic 158 | . 133 1 24 Thermal 79 | . 31 13 35 Explosive . | . . . . Electromagnetic . | . . . . Robot Hit Streak 19 | . 19 6 7 Robot Miss Streak 3 | . 3 2 3 Penetration Max . | . . . . Secondary Targets 2 | . 2 . . Max Gunslinging Chain 1 | . 1 . . Shots Hit Robots 132 | . 107 9 16 Core Hits 55 | . 43 5 7 Critical Kills . | . . . . Critical Parts Destroyed . | . . . . Critical Strikes . | . . . . Melee Attacks . | . . . . Impact . | . . . . Slashing . | . . . . Piercing . | . . . . Sneak Attacks . | . . . . Combat Hostiles . | . . . . Follow-up Attacks . | . . . . Damage Inflicted 1784 | . 1070 145 569 Guns 1193 | . 1070 93 30 Cannons 234 | . . 52 182 Explosions 357 | . . . 357 Melee . | . . . . Ramming . | . . . . Kinetic 1216 | . 799 . 417 Thermal 568 | . 271 145 152 Explosive . | . . . . Electromagnetic . | . . . . Impact . | . . . . Slashing . | . . . . Piercing . | . . . . Highest Corruption . | . . . . Average Corruption . | . . . . Corruption Purged . | . . . . Corruption Blocked . | . . . . Overload Shots . | . . . . Overflow Damage . | . . . . Projectiles . | . . . . Explosions . | . . . . Melee . | . . . . Knockbacks 2 | . . . 2 Impact . | . . . . Kinetic 2 | . . . 2 Secondary . | . . . . Self-Inflicted Damage 12 | . . . 12 Shots 1 | . . . 1 Rammed . | . . . . Targets Rammed . | . . . . Kicked . | . . . . Crushed . | . . . . Highest Temperature 156 | . 103 156 24 Average Temperature 35 | . 30 63 10 Received Heat Transfer 363 | . 279 12 72 Siege Activations . | . . . . Martial Activations . | . . . . Shielding Activations . | . . . . Robots Disrupted . | . . . . Combat Hostiles . | . . . . Robots Corrupted . | . . . . Combat Hostiles . | . . . . Parts Fried . | . . . . Impact Corruptions . | . . . . Robots Melted . | . . . . Combat Hostiles . | . . . . Parts Melted 1 | . . 1 . Heat Transferred 1278 | . 612 333 333 Parts Sabotaged . | . . . . Parts Stolen . | . . . . Parts Stripped . | . . . . Power Chain Reactions . | . . . . Alert | -11 -10 -10 -10 ------- Run | Yrd Mat Min Sub Maximum Alert Level . | . . . . Low Security (%) 100 | 100 100 100 . Level 1 . | . . . . Level 2 . | . . . . Level 3 . | . . . . Level 4 . | . . . . Level 5 . | . . . . High Security . | . . . . Max Security . | . . . . Peak Influence 88 | . 60 88 . Initial . | . . . . Average 18 | . 17 21 . Influence Increases 534 | . 304 230 . Destroy 0b10 Robot/C 360 | . 200 160 . Destroy 0b10 Robot/NC 55 | . 50 5 . Destroy Leader 84 | . 54 30 . Allied During Kill 35 | . . 35 . Influence Decreases 534 | . 304 230 . Time Decay 501 | . 291 210 . Lost Part 13 | . 13 . . Lost Ally 20 | . . 20 . Squads Dispatched 2 | . 2 . . Investigation . | . . . . Extermination . | . . . . Reinforcement 2 | . 2 . . Assault . | . . . . Garrison . | . . . . Intercept . | . . . . Searches Triggered . | . . . . Construction Impeded . | . . . . Haulers Reinforced . | . . . . Active Scanning Responses . | . . . . Cargo Convoy Interrupts . | . . . . Stealth | -11 -10 -10 -10 --------- Run | Yrd Mat Min Sub Distress Signals 3 | . 2 1 . Communications Jammed . | . . . . Distress Signals . | . . . . Times Spotted 35 | . 22 6 7 Peak Tracking Total 4 | . 4 3 2 Tactical Retreats . | . . . . Traps | -11 -10 -10 -10 ------- Run | Yrd Mat Min Sub Traps Triggered 6 | . 4 . 2 Indirectly . | . . . . Trap Hack Attempts . | . . . . Triggered . | . . . . Disarmed . | . . . . Reprogrammed . | . . . . Reused . | . . . . Traps Extracted . | . . . . Installed . | . . . . Triggered . | . . . . Machines | -11 -10 -10 -10 ---------- Run | Yrd Mat Min Sub Machines Disabled . | . . . . Max in Single Turn . | . . . . Machines Repaired . | . . . . Machines Dismantled . | . . . . Machines Sabotaged . | . . . . Overloaded Fab Kills . | . . . . Hacking | -11 -10 -10 -10 --------- Run | Yrd Mat Min Sub Machines Accessed 2 | . 1 . 1 Terminals 1 | . 1 . . Fabricators . | . . . . Repair Stations . | . . . . Recycling Units . | . . . . Scanalyzers . | . . . . Garrison Access . | . . . . Total Hacks 6 | . 2 . 4 Successful 4 | . . . 4 Failed 2 | . 2 . . Catastrophic . | . . . . Database Lockouts . | . . . . Manual 2 | . 2 . . Terminals 2 | . 2 . . Fabricators . | . . . . Repair Stations . | . . . . Recycling Units . | . . . . Scanalyzers . | . . . . Garrison Access . | . . . . Terminal Hacks 4 | . . . 4 Record 4 | . . . 4 Fabricator Hacks . | . . . . Repair Station Hacks . | . . . . Recycling Unit Hacks . | . . . . Scanalyzer . | . . . . Garrison Access Hacks . | . . . . Unauthorized Hacks . | . . . . Terminals . | . . . . Fabricators . | . . . . Repair Stations . | . . . . Recycling Units . | . . . . Scanalyzers . | . . . . Garrison Access . | . . . . Data Cores Recovered . | . . . . Used . | . . . . Hacking Detections 1 | . 1 . . Full Trace Events . | . . . . Feedback Events . | . . . . Feedback Blocked . | . . . . Robot Schematics Acquired . | . . . . Robots Built . | . . . . Authchips . | . . . . Time . | . . . . Total Robot Build Rating . | . . . . Part Schematics Acquired . | . . . . Parts Built . | . . . . Authchips . | . . . . Time . | . . . . Total Part Build Rating . | . . . . Part Studies Acquired . | . . . . Parts Repaired . | . . . . Time . | . . . . Parts Recycled . | . . . . Recycled Matter . | . . . . Retrieved Matter . | . . . . Retrieved Components . | . . . . Parts Scanalyzed . | . . . . Part Schematics Acquired . | . . . . Parts Damaged . | . . . . Bothacking | -11 -10 -10 -10 ------------ Run | Yrd Mat Min Sub Used RIF Installer . | . . . . Robots Hacked . | . . . . Non-combat . | . . . . Combat . | . . . . Robot Hacks Applied . | . . . . Relay Couplers Released . | . . . . Fabnet Peak Effective % . | . . . . Robots Rewired . | . . . . Allies Hacked . | . . . . Hacks Repelled . | . . . . Allies | -11 -10 -10 -10 -------- Run | Yrd Mat Min Sub Total Allies 4 | . . 4 . Largest Group 4 | . . 4 2 Highest-Rated Group 71 | . . 71 32 Highest-Rated Ally 31 | . . 31 16 Total Orders . | . . . . Ally Attacks 29 | . . 17 12 Total Damage 298 | . . 156 142 Kills 6 | . . 5 1 Allies Corrupted . | . . . . Allies Melted . | . . . . Intel | -11 -10 -10 -10 ------- Run | Yrd Mat Min Sub Active Infowar (turns) . | . . . . Robot Analysis Total . | . . . . Derelict Logs Recovered 2 | . . 2 . Drone Launches . | . . . . Drone Recoveries . | . . . . Exploration | -11 -10 -10 -10 ------------- Run | Yrd Mat Min Sub Turns Passed 3452 | 61 1113 1075 1203 Spaces Moved 1374 | 38 412 460 464 Core 8 | 8 . . . Treads 269 | 30 239 . . Legs . | . . . . Wheels 1097 | . 173 460 464 Hover . | . . . . Flight . | . . . . Fastest Speed 50 | 50 160 200 200 Average Speed 209 | 136 199 213 220 Slowest Speed 480 | 160 480 215 230 Overloaded Moves . | . . . . Propulsion Burnouts . | . . . . Robots Hopped . | . . . . Potential Cave-ins 5 | . . . 5 Cave-ins Triggered . | . . . . Exploration Rate (%) 43 | 3 52 93 24 Regions Visited 3 Branch Regions 2 Pre-discovered Areas 2 | . . 1 1 Known Exits Taken . | . . . . Unknown Exits Taken 3 | 1 1 1 . Scrap Searched 12 | . . 1 11 Spaces Dug 9 | . . . 9 Terrain Destroyed 56 | . . . 56 Melee . | . . . . Projectile 16 | . . . 16 AOE 40 | . . . 40 Terrain Rammed . | . . . . Walls Destroyed . | . . . . Machines Disabled . | . . . . Actions | -11 -10 -10 -10 --------- Run | Yrd Mat Min Sub Total 1682 | 44 550 540 548 Wait 90 | . 24 56 10 Move 1371 | 37 411 459 464 Hop . | . . . . Pick Up 31 | 1 18 7 5 Fast Attach 20 | 6 10 1 3 Attach 5 | . 1 2 2 Detach 3 | . 2 . 1 Swap 8 | . 2 2 4 Drop 13 | . . 6 7 Fire 141 | . 82 7 52 Melee . | . . . . Ram . | . . . . Kick . | . . . . Crush . | . . . . Escape Stasis . | . . . . Rewire . | . . . . Trap . | . . . . Miscellaneous . | . . . . Route ------- -11/Scrapyard -10/Materials (discovered 3 exits: [*Mat] / [*Min x2]) -10/Mines (discovered 4 exits: [*Mat x2] / [*Exi] / *Sub) -10/Subcaves (discovered 1 exit: [*Mat]) History --------- Turn | Location | Event 10 | -11/Scrapyard | Discovered new exit (range 15) 62 | -11/Scrapyard | Entered Materials 104 | -10/Materials | Discovered new exit (range 11) 310 | -10/Materials | Build established: Mutant 342 | -10/Materials | Discovered new exit (range 12) 613 | -10/Materials | Discovered new exit (range 14) 1175 | -10/Materials | Entered Mines 1207 | -10/Mines | Discovered new exit (range 10) 1213 | -10/Mines | Assisted by bots powering up and referring to "LRC-V3" 1241 | -10/Mines | Found DCF Scrap (10 items) 1285 | -10/Mines | Received a Mining Laser from a helpful Derelict 1411 | -10/Mines | Received a Rocket Launcher from a helpful Derelict 1537 | -10/Mines | Build established: Scavenger-Mutant 1639 | -10/Mines | Discovered new exit (range 7) 1966 | -10/Mines | Learned location of Zion (-7) 2003 | -10/Mines | Learned 2 Materials zone layouts 2145 | -10/Mines | Deemed a non-threat by the Exiles lab entrance 2147 | -10/Mines | Discovered new exit (range 5) 2214 | -10/Mines | Discovered new exit (range 9) 2250 | -10/Mines | Entered Subcaves 2250 | -10/Subcaves | Accompanied by 2 allies 2251 | -10/Subcaves | Approached by a straggling Scientist 2313 | -10/Subcaves | Disturbed a concealed Subdweller 2374 | -10/Subcaves | Discovered new exit (range 5) 2397 | -10/Subcaves | Visited Clippyterm 2403 | -10/Subcaves | Learned Research machine intel 2617 | -10/Subcaves | A swath of the cavern ceiling suddenly collapsed 2764 | -10/Subcaves | Build established: Mutant 2871 | -10/Subcaves | Core integrity fell below 50% 3104 | -10/Subcaves | Shifting Twisted Machinery released Sub. Optics 3119 | -10/Subcaves | Shifting Twisted Machinery released Battle Rifle 3202 | -10/Subcaves | Met a Zionite searching for "candidates" 3246 | -10/Subcaves | Build established: Derelict-Mutant 3446 | -10/Subcaves | Core integrity fell below 20% 3453 | -10/Subcaves | Destroyed by CV-91H(R) with Subdweller Laser Last Messages --------------- we haven't found any suitable candidates yet." 03149_ 4N-OHE(u) tweaks Twisted Machinery. 03179_ Acquired Battle Rifle. 03183_ Slug penetrates Twisted Machinery. 03202_ 1T-H6T(z): "Hey you! It's really dangerous down here, I feel that you could die at any moment. For your health and safety might I suggest a trip to Zion?" World map confirmed: -7/Zion. 03227_ Slug penetrates Twisted Machinery. 03243_ Slug penetrates NI-KV7(R). 03247_ N3-6AE(R) knocked back. 03247_ N3-6AE(R) destroyed. 03247_ NI-KV7(R) destroyed. 03254_ Acquired 41 matter. 03259_ Acquired 17 matter. 03369_ 1T-H6T(z) scatters some of the Twisted Machinery. 03449_ Wheel destroyed. 03450_ CV-91H(R) knocked back. Map ----- +----------------------------------------------------+ | ??????????????????????????# ##????????????? | | ??????????????????????????# "#?????????????? | | ?????????????????????????### #?????????????? | | ?????????????????????????#"" " "#?????????????? | | ?????????????????????????#" " "#?????????????? | | ?????????????????????????##" [ #?????????????? | | ##????????????????????????#" ##????????????? | | %#????????????????????????# " ###????##????? | | ##???????????????????????#"#"" ### ##???? | | #????????????????????????####" #???? | | #???????????????????????#???# #???? | | ##????########????????## ???# " ##### ##???? | | ###?## #????????# #??### " #??????#????? | | ### ###??????# ????# #???????????? | | #???#### ##### ####???????????? | | ### # #??## ; ## " ##?????????????? | | #?### #?## ## #?????????????? | | ???# ## #### ?# ##????? #????? | | ??# #?##### R ;?## #?#?? ##???? | | ??# ## ##????? R ;#### # # #???? | | ??##?#####???????# # #??? | | ??????????????????# ; ## #??? | | ???????????????????#; ;# ## #??? | | ???????????????????# #?? #??? | | ?????????????????????# #??? ??? | | ?????????????????????## @ #### #??? ???? | | ??????????????????????### #???###???? ###???? | | ????????????????????????## #???????????##?????? | | ?????????????????????????## #?????????????????? | | ??????????????????????????# #????????????????? | | ??????????????????????????## #????????????????? | | ???????????????????????????## #????????????????? | | ????????????????????????????? #????????????????? | | ????????????????????????????? #????????????????? | | ????????????????????????????? #????????????????? | | ????????????????????????????? #????????????????? | | ????????????????????????????? #????????????????? | | ????????????????????????????? ##????????????????? | | ????????????????????????????? #?????????????????? | | ?????????????????????????????? ??????????????????? | | ?????????????????????????????????????????????????? | | ?????????????????????????????????????????????????? | | ?????????????????????????????????????????????????? | | ?????????????????????????????????????????????????? | | ?????????????????????????????????????????????????? | | ?????????????????????????????????????????????????? | | ?????????????????????????????????????????????????? | | ?????????????????????????????????????????????????? | | ?????????????????????????????????????????????????? | | ?????????????????????????????????????????????????? | +----------------------------------------------------+ Best States ------------- Heat Dissipation 35 Energy Generation 15 Energy Capacity 250 Matter Stores 300 Matter Capacity 300 Sight Range 16 Terrain Scan Density 10 Armor Coverage 150 Evasion (%) 40 Recoil Reduction 2 Item Schematics ----------------- None Robot Schematics ------------------ None Fabricated ------------ Nothing Repaired ---------- Nothing Studied --------- None Alien Tech Used ----------------- None Achievements -------------- None Challenges ------------ None Game ------ Seed BiocellSupercompositeMinigun Manual? 0 Play Time 00:15:58 Cumulative 516.2 hours Start 2025.11.07 @ 17:36:47 End 2025.11.07 @ 20:56:33 Sessions 2 Manual Loads 0 Difficulty Rogue Special Mode None Game No. 853 Rogue 698 Adventurer 148 Explorer 7 Win Type - Total 24 Types 19/1/3/1/0/0/0/0/0/0 Lore% 76 Gallery% 79 Achievement% 61 Wizard Run 0 Options --------- Layout 1 ASCII 0 Keyboard 0 Movement Numpad Keybinds 0 Fullscreen 2 Font 24/Smallcaps Map View 50x40 Zoom Use 0% Tactical HUD 1 Map Filters NONE Filters NONE Steam 1 RUN: b1f6276c-8376-41ad-ad84-da862b83a3d9